fUSD/lending_fUSD_20240418
["ID","MTS","AMOUNT","RATE_DAILY","PERIOD"]
[322887280,1713479465395,-500.0,0.0001762,2]
[322887281,1713479465404,-2624.59,0.0001762,2]
[322887282,1713479465414,-2203.93,0.0001762,2]
[322887283,1713479465423,-2203.93,0.0001762,2]
[322887284,1713479465432,-393.32,0.0001762,2]
[322887285,1713479465442,-2141.96,0.0001762,2]
[322887286,1713479465452,-393.32,0.0001762,2]
[322887287,1713479465462,-2141.96,0.0001762,2]
[322887288,1713479465471,-500.0,0.0001762,2]
[322887289,1713479465480,-500.0,0.0001762,2]
[322887290,1713479465489,-500.0,0.0001762,2]
[322887291,1713479465498,-500.0,0.0001762,2]
[322887292,1713479465507,-500.0,0.0001762,2]
[322887293,1713479465516,-500.0,0.0001762,2]
[322887294,1713479465526,-644.14,0.0001762,2]
[322887295,1713479465535,-1000.0,0.0001762,2]
[322887296,1713479465544,-644.14,0.0001762,2]
[322887297,1713479465553,-1000.0,0.0001762,2]
[322887298,1713479465562,-580.45,0.0001762,2]
[322887299,1713479465571,-580.45,0.0001762,2]
[322887300,1713479465580,-500.0,0.0001762,2]
[322887301,1713479465589,-500.0,0.0001762,2]
[322887302,1713479465598,-500.0,0.0001762,2]
[322887303,1713479465609,-500.0,0.0001762,2]
[322887304,1713479465618,-628.54,0.0001762,2]
[322887305,1713479465627,-628.54,0.0001762,2]
[322887306,1713479465636,-273.93231312,0.0001762,2]
[322887307,1713479465645,-2160.75,0.0001762,2]
[322887308,1713479465654,-1877.34,0.0001762,2]
[322887309,1713479465663,-2160.75,0.0001762,2]
[322887310,1713479465672,-1877.34,0.0001762,2]
[322887311,1713479465681,-1005.3,0.0001762,2]
[322887312,1713479465690,-1005.3,0.0001762,2]
[322887313,1713479465699,-1005.1,0.0001762,2]
[322887314,1713479465709,-1005.1,0.0001762,2]
[322887315,1713479465718,-1108.29,0.0001762,2]
[322887316,1713479465727,-1100.65,0.0001762,2]
[322887317,1713479465736,-1257.61,0.0001762,2]
[322887318,1713479465745,-1108.29,0.0001762,2]
[322887319,1713479465754,-1100.65,0.0001762,2]
[322887320,1713479465763,-1257.61,0.0001762,2]
[322887321,1713479465772,-500.0,0.0001762,2]
[322887322,1713479465781,-500.0,0.0001762,2]
[322887323,1713479465791,-500.0,0.0001762,2]
[322887324,1713479465800,-500.0,0.0001762,2]
[322887325,1713479465809,-500.0,0.0001762,2]
[322887326,1713479465818,-500.0,0.0001762,2]
[322887327,1713479465827,-519.92,0.0001762,2]
[322887328,1713479465836,-1657.47,0.0001762,2]
[322887329,1713479465845,-1657.47,0.0001762,2]
[322887330,1713479465856,-500.0,0.0001762,2]
[322887331,1713479465865,-500.0,0.0001762,2]
[322887332,1713479465874,-500.0,0.0001762,2]
[322887333,1713479465883,-500.0,0.0001762,2]
[322887334,1713479465892,-500.0,0.0001762,2]
[322887335,1713479465901,-500.0,0.0001762,2]
[322887336,1713479465911,-532.39,0.0001762,2]
[322887337,1713479465921,-500.0,0.0001762,2]
[322887338,1713479465931,-500.0,0.0001762,2]
[322887339,1713479465939,-500.0,0.0001762,2]
[322887340,1713479465949,-1391.95,0.0001762,2]
[322887341,1713479465958,-500.0,0.0001762,2]
[322887342,1713479465968,-1391.95,0.0001762,2]
[322887343,1713479465977,-2917.09,0.0001762,2]
[322887344,1713479465986,-2917.09,0.0001762,2]
[322887345,1713479465995,-524.05,0.0001762,2]
[322887346,1713479466005,-524.05,0.0001762,2]
[322887347,1713479466015,-2097.83,0.0001762,2]
[322887348,1713479466024,-2097.83,0.0001762,2]
[322887349,1713479466033,-670.35,0.0001762,2]
[322887350,1713479466042,-670.35,0.0001762,2]
[322887351,1713479466051,-500.0,0.0001762,2]
[322887352,1713479466060,-500.0,0.0001762,2]
[322887353,1713479466069,-500.0,0.0001762,2]
[322887354,1713479466078,-500.0,0.0001762,2]
[322887355,1713479466087,-738.47,0.0001762,2]
[322887356,1713479466096,-738.47,0.0001762,2]
[322887357,1713479466107,-500.0,0.0001762,2]
[322887358,1713479466116,-500.0,0.0001762,2]
[322887359,1713479466126,-500.0,0.0001762,2]
[322887360,1713479466135,-727.61,0.0001762,2]
[322887361,1713479466143,-727.61,0.0001762,2]
[322887362,1713479466154,-1425.87,0.0001762,2]
[322887363,1713479466164,-1425.87,0.0001762,2]
[322887364,1713479466174,-500.0,0.0001762,2]
[322887365,1713479466188,-500.0,0.0001762,2]
[322887366,1713479466207,-151.0,0.0001762,2]
[322887367,1713479466220,-500.0,0.0001762,2]
[322887368,1713479466232,-500.0,0.0001762,2]
[322887369,1713479466244,-1170.89,0.0001762,2]
[322887370,1713479466255,-500.0,0.0001762,2]
[322887371,1713479466266,-1170.89,0.0001762,2]
[322887372,1713479466277,-500.0,0.0001762,2]
[322887373,1713479466287,-500.0,0.0001762,2]
[322887374,1713479466298,-500.0,0.0001762,2]
[322887375,1713479466307,-500.0,0.0001762,2]
[322887376,1713479466316,-500.0,0.0001762,2]
[322887377,1713479466326,-500.0,0.0001762,2]
[322887378,1713479466336,-2768.68,0.0001762,2]
[322887379,1713479466346,-2768.68,0.0001762,2]
[322887380,1713479466358,-500.0,0.0001762,2]
[322887381,1713479466368,-151.0,0.0001762,2]
[322887382,1713479466379,-151.0,0.0001762,2]
[322887383,1713479466389,-931.18,0.0001762,2]
[322887384,1713479466399,-931.18,0.0001762,2]
[322887385,1713479466409,-500.0,0.0001762,2]
[322887386,1713479466418,-1518.22,0.0001762,2]
[322887387,1713479466428,-500.0,0.0001762,2]
[322887388,1713479466438,-1518.22,0.0001762,2]
[322887389,1713479466448,-2853.75,0.0001762,2]
[322887390,1713479466457,-2853.75,0.0001762,2]
[322887391,1713479466467,-500.0,0.0001762,2]
[322887392,1713479466476,-500.0,0.0001762,2]
[322887393,1713479466487,-500.0,0.0001762,2]
[322887394,1713479466496,-500.0,0.0001762,2]
[322887395,1713479466776,-500.0,0.0001762,2]
[322887396,1713479466786,-510.18799679,0.0001762,2]
[322887397,1713479466797,-151.0,0.0001762,2]
[322887398,1713479466807,-672.53,0.0001762,2]
[322887399,1713479466817,-672.53,0.0001762,2]
[322887400,1713479466827,-726.73,0.0001762,2]
[322887401,1713479466838,-726.73,0.0001762,2]
[322887402,1713479466848,-1659.41,0.0001762,2]
[322887403,1713479466860,-1659.41,0.0001762,2]
[322887404,1713479466870,-500.0,0.0001762,2]
[322887405,1713479466880,-500.0,0.0001762,2]
[322887406,1713479466890,-775.97,0.0001762,2]
[322887407,1713479466900,-775.97,0.0001762,2]
[322887408,1713479466910,-745.29,0.0001762,2]
[322887409,1713479466921,-745.29,0.0001762,2]
[322887410,1713479466934,-600.92,0.0001762,2]
[322887411,1713479466944,-600.92,0.0001762,2]
[322887412,1713479466954,-500.0,0.0001762,2]
[322887413,1713479466965,-500.0,0.0001762,2]
[322887414,1713479466974,-1255.74,0.0001762,2]
[322887415,1713479466984,-1255.74,0.0001762,2]
[322887416,1713479466995,-609.65,0.0001762,2]
[322887417,1713479467005,-609.65,0.0001762,2]
[322887418,1713479467015,-500.0,0.0001762,2]
[322887419,1713479467025,-500.0,0.0001762,2]
[322887420,1713479467035,-1264.59,0.0001762,2]
[322887421,1713479467045,-1264.59,0.0001762,2]
[322887422,1713479467055,-1429.2,0.0001762,2]
[322887423,1713479467064,-1429.2,0.0001762,2]
[322887424,1713479467074,-502.76547396,0.0001762,2]
[322887425,1713479467084,-500.0,0.0001762,2]
[322887426,1713479467094,-500.0,0.0001762,2]
[322887427,1713479467104,-727.86,0.0001762,2]
[322887428,1713479467114,-727.86,0.0001762,2]
[322887429,1713479467124,-500.0,0.0001762,2]
[322887430,1713479467134,-500.0,0.0001762,2]
[322887431,1713479467144,-193.60488,0.0001762,2]
[322887432,1713479467154,-193.60488,0.0001762,2]
[322887433,1713479467163,-193.60488,0.0001762,2]
[322887434,1713479467173,-193.60488,0.0001762,2]
[322887435,1713479467182,-193.60488,0.0001762,2]
[322887436,1713479467192,-500.0,0.0001762,2]
[322887437,1713479467202,-193.60488,0.0001762,2]
[322887438,1713479467212,-500.0,0.0001762,2]
[322887439,1713479467222,-193.60488,0.0001762,2]
[322887440,1713479467232,-193.60488,0.0001762,2]
[322887441,1713479467242,-635.14,0.0001762,2]
[322887442,1713479467251,-635.14,0.0001762,2]
[322887443,1713479467261,-500.0,0.0001762,2]
[322887444,1713479467271,-500.0,0.0001762,2]
[322887445,1713479467280,-500.0,0.0001762,2]
[322887446,1713479467290,-500.0,0.0001762,2]
[322887447,1713479467299,-1556.74,0.0001762,2]
[322887448,1713479467309,-1556.74,0.0001762,2]
[322887449,1713479467319,-500.0,0.0001762,2]
[322887450,1713479467329,-500.0,0.0001762,2]
[322887451,1713479467339,-151.0,0.0001762,2]
[322887452,1713479467349,-151.0,0.0001762,2]
[322887453,1713479467361,-151.0,0.0001762,2]
[322887454,1713479467370,-151.0,0.0001762,2]
[322887455,1713479467381,-151.0,0.0001762,2]
[322887456,1713479467390,-151.0,0.0001762,2]
[322887457,1713479467400,-151.0,0.0001762,2]
[322887458,1713479467410,-500.0,0.0001762,2]
[322887459,1713479467419,-500.0,0.0001762,2]
[322887460,1713479467428,-500.0,0.0001762,2]
[322887461,1713479467438,-500.0,0.0001762,2]
[322887462,1713479467448,-1015.06,0.0001762,2]
[322887463,1713479467458,-1015.06,0.0001762,2]
[322887464,1713479467467,-500.0,0.0001762,2]
[322887465,1713479467477,-500.0,0.0001762,2]
[322887466,1713479467487,-1299.71,0.0001762,2]
[322887467,1713479467497,-1299.71,0.0001762,2]
[322887468,1713479467507,-500.0,0.0001762,2]
[322887469,1713479467517,-500.0,0.0001762,2]
[322887470,1713479467527,-500.0,0.0001762,2]
[322887471,1713479467537,-500.0,0.0001762,2]
[322887472,1713479467546,-500.0,0.0001762,2]
[322887473,1713479467556,-500.0,0.0001762,2]
[322887474,1713479467566,-500.0,0.0001762,2]
[322887475,1713479467576,-500.0,0.0001762,2]
[322887476,1713479467586,-1138.93,0.0001762,2]
[322887477,1713479467596,-1138.93,0.0001762,2]
[322887478,1713479467606,-500.0,0.0001762,2]
[322887479,1713479467615,-500.0,0.0001762,2]
[322887480,1713479467625,-641.68,0.0001762,2]
[322887481,1713479467634,-641.68,0.0001762,2]
[322887482,1713479467644,-500.0,0.0001762,2]
[322887483,1713479467654,-500.0,0.0001762,2]
[322887484,1713479467664,-1277.34,0.0001762,2]
[322887485,1713479467673,-1277.34,0.0001762,2]
[322887486,1713479467683,-588.31,0.0001762,2]
[322887487,1713479467693,-588.31,0.0001762,2]
[322887488,1713479467703,-1210.45,0.0001762,2]
[322887489,1713479467713,-1210.45,0.0001762,2]
[322887490,1713479467722,-1287.5,0.0001762,2]
[322887491,1713479467731,-1287.5,0.0001762,2]
[322887492,1713479467741,-500.0,0.0001762,2]
[322887493,1713479467752,-500.0,0.0001762,2]
[322887494,1713479467762,-151.0,0.0001762,2]
[322887495,1713479467772,-214.602242,0.0001762,2]
[322887496,1713479467782,-668.72,0.0001762,2]
[322887497,1713479467791,-500.0,0.0001762,2]
[322887498,1713479467801,-668.72,0.0001762,2]
[322887499,1713479467811,-500.0,0.0001762,2]
[322887500,1713479467822,-1226.01,0.0001762,2]
[322887501,1713479467832,-791.45,0.0001762,2]
[322887502,1713479467843,-1226.01,0.0001762,2]
[322887503,1713479467853,-791.45,0.0001762,2]
[322887504,1713479467863,-151.0,0.0001762,2]
[322887505,1713479467872,-151.0,0.0001762,2]
[322887506,1713479467882,-151.0,0.0001762,2]
[322887507,1713479467892,-500.0,0.0001762,2]
[322887508,1713479467902,-500.0,0.0001762,2]
[322887509,1713479467911,-151.0,0.0001762,2]
[322887510,1713479467922,-151.0,0.0001762,2]
[322887511,1713479467933,-151.0,0.0001762,2]
[322887512,1713479467942,-500.0,0.0001762,2]
[322887513,1713479467952,-500.0,0.0001762,2]
[322887514,1713479467963,-500.0,0.0001762,2]
[322887515,1713479467972,-500.0,0.0001762,2]
[322887516,1713479467981,-761.13,0.0001762,2]
[322887517,1713479467991,-761.13,0.0001762,2]
[322887518,1713479468002,-1085.11,0.0001762,2]
[322887519,1713479468011,-1085.11,0.0001762,2]
[322887520,1713479468020,-500.0,0.0001762,2]
[322887521,1713479468030,-500.0,0.0001762,2]
[322887522,1713479468039,-500.0,0.0001762,2]
[322887523,1713479468049,-500.0,0.0001762,2]
[322887524,1713479468059,-500.0,0.0001762,2]
[322887525,1713479468069,-500.0,0.0001762,2]
[322887526,1713479468078,-7951.94,0.0001762,2]
[322887527,1713479468088,-7951.94,0.0001762,2]
[322887528,1713479468098,-7951.94,0.0001762,2]
[322887529,1713479468108,-7951.94,0.0001762,2]
[322887530,1713479468117,-7951.95580885,0.0001762,2]
[322887531,1713479468126,-500.0,0.0001762,2]
[322887532,1713479468136,-500.0,0.0001762,2]
[322887533,1713479468145,-2301.97,0.0001762,2]
[322887534,1713479468154,-2301.97,0.0001762,2]
[322887535,1713479468164,-151.0,0.0001762,2]
[322887536,1713479468173,-1192.26,0.0001762,2]
[322887537,1713479468183,-151.0,0.0001762,2]
[322887538,1713479468192,-1192.26,0.0001762,2]
[322887539,1713479468202,-372.232675,0.0001762,2]
[322887540,1713479468211,-151.0,0.0001762,2]
[322887541,1713479468220,-372.232675,0.0001762,2]
[322887542,1713479468230,-500.0,0.0001762,2]
[322887543,1713479468239,-500.0,0.0001762,2]
[322887544,1713479468249,-372.232675,0.0001762,2]
[322887545,1713479468259,-1953.57,0.0001762,2]
[322887546,1713479468268,-1953.57,0.0001762,2]
[322887547,1713479468277,-1953.57,0.0001762,2]
[322887548,1713479468287,-1953.57,0.0001762,2]
[322887549,1713479468295,-1953.79317416,0.0001762,2]
[322887550,1713479468305,-372.232675,0.0001762,2]
[322887551,1713479468314,-372.232675,0.0001762,2]
[322887552,1713479468323,-372.232675,0.0001762,2]
[322887553,1713479468332,-1422.76,0.0001762,2]
[322887554,1713479468342,-1422.76,0.0001762,2]
[322887555,1713479468352,-500.0,0.0001762,2]
[322887556,1713479468362,-500.0,0.0001762,2]
[322887557,1713479468372,-838.31,0.0001762,2]
[322887558,1713479468395,-838.31,0.0001762,2]
[322887559,1713479468413,-500.0,0.0001762,2]
[322887560,1713479468432,-500.0,0.0001762,2]
[322887561,1713479468451,-96061.29,0.0001762,2]
[322887562,1713479468468,-96061.29,0.0001762,2]
[322887563,1713479468489,-96061.29,0.0001762,2]
[322887564,1713479468505,-96061.29,0.0001762,2]
[322887565,1713479468523,-96061.42620506,0.0001762,2]
[322887566,1713479468543,-535.17,0.0001762,2]
[322887567,1713479468564,-535.17,0.0001762,2]
[322887568,1713479468585,-2933.75,0.0001762,2]
[322887569,1713479468603,-2933.75,0.0001762,2]
[322887570,1713479468617,-500.0,0.0001762,2]
[322887571,1713479468635,-500.0,0.0001762,2]
[322887572,1713479468655,-9731.11,0.0001762,2]
[322887573,1713479468673,-9731.11,0.0001762,2]
[322887574,1713479468691,-9731.11,0.0001762,2]
[322887575,1713479468709,-9731.11,0.0001762,2]
[322887576,1713479468726,-500.0,0.0001762,2]
[322887577,1713479468742,-9731.17350403,0.0001762,2]
[322887578,1713479468759,-500.0,0.0001762,2]
[322887579,1713479468776,-1124.61,0.0001762,2]
[322887580,1713479468792,-1124.61,0.0001762,2]
[322887581,1713479468808,-500.0,0.0001762,2]
[322887582,1713479468824,-500.0,0.0001762,2]
[322887583,1713479468840,-6358.7,0.0001762,2]
[322887584,1713479468856,-6358.7,0.0001762,2]
[322887585,1713479468873,-1240.33,0.0001762,2]
[322887586,1713479468888,-866.89,0.0001762,2]
[322887587,1713479468904,-1240.33,0.0001762,2]
[322887588,1713479468921,-866.89,0.0001762,2]
[322887589,1713479468939,-376.8980548,0.0001762,2]
[322887590,1713479468955,-1238.08,0.0001762,2]
[322887591,1713479468971,-1238.08,0.0001762,2]
[322887592,1713479468986,-1208.53,0.0001762,2]
[322887593,1713479469011,-1208.53,0.0001762,2]
[322887594,1713479469027,-500.0,0.0001762,2]
[322887595,1713479469043,-500.0,0.0001762,2]
[322887596,1713479469058,-2206.58,0.0001762,2]
[322887597,1713479469074,-2206.58,0.0001762,2]
[322887598,1713479469090,-9072.51,0.0001762,2]
[322887599,1713479469107,-9072.51,0.0001762,2]
[322887600,1713479469123,-9072.51,0.0001762,2]
[322887601,1713479469140,-9072.51,0.0001762,2]
[322887602,1713479469156,-879.64,0.0001762,2]
[322887603,1713479469172,-9072.535826,0.0001762,2]
[322887604,1713479469190,-879.64,0.0001762,2]
[322887605,1713479469206,-1067.59,0.0001762,2]
[322887606,1713479469222,-1067.59,0.0001762,2]
[322887607,1713479469238,-1179.21,0.0001762,2]
[322887608,1713479469254,-1179.21,0.0001762,2]
[322887609,1713479469270,-2419.25,0.0001762,2]
[322887610,1713479469285,-2419.25,0.0001762,2]
[322887611,1713479469301,-3793.69,0.0001762,2]
[322887612,1713479469317,-3793.69,0.0001762,2]
[322887613,1713479469333,-3793.69,0.0001762,2]
[322887614,1713479469350,-3793.69,0.0001762,2]
[322887615,1713479469367,-3793.76053412,0.0001762,2]
[322887616,1713479469383,-544.02,0.0001762,2]
[322887617,1713479469399,-544.02,0.0001762,2]
[322887618,1713479469415,-1521.76,0.0001762,2]
[322887619,1713479469431,-1521.76,0.0001762,2]
[322887620,1713479469446,-749.95,0.0001762,2]
[322887621,1713479469463,-1928.81,0.0001762,2]
[322887622,1713479469479,-749.95,0.0001762,2]
[322887623,1713479469495,-5801.29,0.0001762,2]
[322887624,1713479469510,-1928.81,0.0001762,2]
[322887625,1713479469527,-5801.29,0.0001762,2]
[322887626,1713479469542,-5801.29,0.0001762,2]
[322887627,1713479469560,-5801.29,0.0001762,2]
[322887628,1713479469576,-5801.49410086,0.0001762,2]
[322887629,1713479469591,-737.31,0.0001762,2]
[322887630,1713479469609,-737.31,0.0001762,2]
[322887631,1713479469625,-517.28323487,0.0001762,2]
[322887632,1713479469641,-737.31,0.0001762,2]
[322887633,1713479469658,-737.31,0.0001762,2]
[322887634,1713479469674,-737.46124231,0.0001762,2]
[322887635,1713479469691,-1068.07,0.0001762,2]
[322887636,1713479469707,-1068.07,0.0001762,2]
[322887637,1713479469723,-500.0,0.0001762,2]
[322887638,1713479469739,-500.0,0.0001762,2]
[322887639,1713479469756,-500.0,0.0001762,2]
[322887640,1713479469772,-500.0,0.0001762,2]
[322887641,1713479469787,-8367.52,0.0001762,2]
[322887642,1713479469802,-812.95,0.0001762,2]
[322887643,1713479469819,-8367.52,0.0001762,2]
[322887644,1713479469835,-812.95,0.0001762,2]
[322887645,1713479469852,-500.0,0.0001762,2]
[322887646,1713479469868,-500.0,0.0001762,2]
[322887647,1713479469883,-1865.32,0.0001762,2]
[322887648,1713479469900,-1865.32,0.0001762,2]
[322887649,1713479469916,-9359.99,0.0001762,2]
[322887650,1713479469934,-9359.99,0.0001762,2]
[322887651,1713479469950,-9359.99,0.0001762,2]
[322887652,1713479469966,-7619.23,0.0001762,2]
[322887653,1713479469982,-9359.99,0.0001762,2]
[322887654,1713479469998,-9360.09433554,0.0001762,2]
[322887655,1713479470014,-7619.23,0.0001762,2]
[322887656,1713479470030,-1453.37,0.0001762,2]
[322887657,1713479470046,-1453.37,0.0001762,2]
[322887658,1713479470062,-500.0,0.0001762,2]
[322887659,1713479470078,-500.0,0.0001762,2]
[322887660,1713479470094,-568.6,0.0001762,2]
[322887661,1713479470110,-568.6,0.0001762,2]
[322887662,1713479470126,-500.0,0.0001762,2]
[322887663,1713479470143,-500.0,0.0001762,2]
[322887664,1713479470160,-10220.9,0.0001762,2]
[322887665,1713479470176,-10220.9,0.0001762,2]
[322887666,1713479470192,-500.0,0.0001762,2]
[322887667,1713479470208,-500.0,0.0001762,2]
[322887668,1713479470224,-4990.83,0.0001762,2]
[322887669,1713479470239,-1138.59,0.0001762,2]
[322887670,1713479470255,-4990.83,0.0001762,2]
[322887671,1713479470270,-1138.59,0.0001762,2]
[322887672,1713479470287,-500.0,0.0001762,2]
[322887673,1713479470301,-16870.05,0.0001762,2]
[322887674,1713479470316,-500.0,0.0001762,2]
[322887675,1713479470331,-16870.05,0.0001762,2]
[322887676,1713479470347,-500.0,0.0001762,2]
[322887677,1713479470365,-500.0,0.0001762,2]
[322887678,1713479470380,-500.0,0.0001762,2]
[322887679,1713479470395,-500.0,0.0001762,2]
[322887680,1713479470411,-16870.05,0.0001762,2]
[322887681,1713479470427,-16870.05,0.0001762,2]
[322887682,1713479470443,-16870.22396059,0.0001762,2]
[322887683,1713479470459,-6772.51,0.0001762,2]
[322887684,1713479470474,-6772.51,0.0001762,2]
[322887685,1713479470489,-6772.51,0.0001762,2]
[322887686,1713479470504,-2065.72,0.0001762,2]
[322887687,1713479470520,-6772.51,0.0001762,2]
[322887688,1713479470534,-2065.72,0.0001762,2]
[322887689,1713479470549,-6772.60082408,0.0001762,2]
[322887690,1713479470564,-500.0,0.0001762,2]
[322887691,1713479470580,-500.0,0.0001762,2]
[322887692,1713479470594,-864.2,0.0001762,2]
[322887693,1713479470611,-864.2,0.0001762,2]
[322887694,1713479470626,-500.0,0.0001762,2]
[322887695,1713479470641,-500.0,0.0001762,2]
[322887696,1713479470657,-2297.48,0.0001762,2]
[322887697,1713479470671,-2297.48,0.0001762,2]
[322887698,1713479470686,-10578.68,0.0001762,2]
[322887699,1713479470700,-10578.68,0.0001762,2]
[322887700,1713479470716,-671.04,0.0001762,2]
[322887701,1713479470731,-671.04,0.0001762,2]
[322887702,1713479470745,-500.0,0.0001762,2]
[322887703,1713479470759,-500.0,0.0001762,2]
[322887704,1713479470774,-10346.74,0.0001762,2]
[322887705,1713479470788,-14550.9,0.0001762,2]
[322887706,1713479470803,-10346.74,0.0001762,2]
[322887707,1713479470819,-14550.9,0.0001762,2]
[322887708,1713479470833,-10346.74,0.0001762,2]
[322887709,1713479470843,-10346.74,0.0001762,2]
[322887710,1713479470854,-14550.9,0.0001762,2]
[322887711,1713479470863,-10346.97300741,0.0001762,2]
[322887712,1713479470873,-14550.9,0.0001762,2]
[322887713,1713479470882,-14551.02373133,0.0001762,2]
[322887714,1713479470891,-2023.05,0.0001762,2]
[322887715,1713479470900,-899.76,0.0001762,2]
[322887716,1713479470910,-2023.05,0.0001762,2]
[322887717,1713479470920,-899.76,0.0001762,2]
[322887718,1713479470932,-19253.65,0.0001762,2]
[322887719,1713479470941,-19253.65,0.0001762,2]
[322887720,1713479471419,-500.0,0.0001762,2]
[322887721,1713479471450,-500.0,0.0001762,2]
[322887722,1713479471460,-2967.05,0.0001762,2]
[322887723,1713479471470,-2967.05,0.0001762,2]
[322887724,1713479471478,-966.4,0.0001762,2]
[322887725,1713479471488,-500.0,0.0001762,2]
[322887726,1713479471497,-966.4,0.0001762,2]
[322887727,1713479471506,-500.0,0.0001762,2]
[322887728,1713479471516,-13224.39,0.0001762,2]
[322887729,1713479471526,-13224.39,0.0001762,2]
[322887730,1713479471535,-1657.71,0.0001762,2]
[322887731,1713479471544,-1657.71,0.0001762,2]
[322887732,1713479471554,-1657.71,0.0001762,2]
[322887733,1713479471563,-1657.71,0.0001762,2]
[322887734,1713479471572,-1657.89,0.0001762,2]
[322887735,1713479471582,-658.44,0.0001762,2]
[322887736,1713479471591,-658.44,0.0001762,2]
[322887737,1713479471601,-500.0,0.0001762,2]
[322887738,1713479471612,-500.0,0.0001762,2]
[322887739,1713479471621,-19656.41,0.0001762,2]
[322887740,1713479471631,-19656.41,0.0001762,2]
[322887741,1713479471640,-500.0,0.0001762,2]
[322887742,1713479471649,-500.0,0.0001762,2]
[322887743,1713479471659,-5187.3,0.0001762,2]
[322887744,1713479471668,-5187.3,0.0001762,2]
[322887745,1713479471677,-5187.3,0.0001762,2]
[322887746,1713479471687,-5187.3,0.0001762,2]
[322887747,1713479471697,-5187.32659568,0.0001762,2]
[322887748,1713479471706,-500.0,0.0001762,2]
[322887749,1713479471715,-500.0,0.0001762,2]
[322887750,1713479471725,-500.0,0.0001762,2]
[322887751,1713479471734,-2913.45,0.0001762,2]
[322887752,1713479471743,-500.0,0.0001762,2]
[322887753,1713479471753,-2913.45,0.0001762,2]
[322887754,1713479471763,-2913.45,0.0001762,2]
[322887755,1713479471772,-2913.45,0.0001762,2]
[322887756,1713479471781,-1240.54,0.0001762,2]
[322887757,1713479471790,-2913.55394971,0.0001762,2]
[322887758,1713479471800,-1240.54,0.0001762,2]
[322887759,1713479471809,-1240.54,0.0001762,2]
[322887760,1713479471819,-1240.54,0.0001762,2]
[322887761,1713479471828,-1240.59690705,0.0001762,2]
[322887762,1713479471838,-860.89,0.0001762,2]
[322887763,1713479471847,-860.89,0.0001762,2]
[322887764,1713479471858,-791.88,0.0001762,2]
[322887765,1713479471867,-791.88,0.0001762,2]
[322887766,1713479471876,-43505.78,0.0001762,2]
[322887767,1713479471885,-43505.78,0.0001762,2]
[322887768,1713479471895,-500.0,0.0001762,2]
[322887769,1713479471905,-43505.78,0.0001762,2]
[322887770,1713479471914,-413.62377832,0.0001762,2]
[322887771,1713479471924,-43505.78,0.0001762,2]
[322887772,1713479471936,-43505.87607975,0.0001762,2]
[322887773,1713479471945,-500.0,0.0001762,2]
[322887774,1713479471955,-500.0,0.0001762,2]
[322887775,1713479471966,-8219.6,0.0001762,2]
[322887776,1713479471975,-8219.6,0.0001762,2]
[322887777,1713479471985,-506.79,0.0001762,2]
[322887778,1713479471994,-1607.67,0.0001762,2]
[322887779,1713479472005,-506.79,0.0001762,2]